bitfinex-derivatives/quotes_BNBF0:USTF0_20250211
["timestamp","ask_amount","ask_price","bid_price","bid_amount"]
[1739292265100,0.31455938,635.81,634.39,0.28935609]
[1739292265504,0.31455938,635.81,634.4,0.28935609]
[1739292265705,0.31455938,635.81,634.37,0.31527342]
[1739292266403,0.31455938,635.81,634.38,0.28931032]
[1739292266604,0.31455938,635.81,634.39,0.31526348]
[1739292266900,0.31455938,635.81,634.4,0.28931032]
[1739292268510,0.31455938,635.81,634.41,0.31525354]
[1739292268710,0.31455938,635.81,634.42,0.28931032]
[1739292270607,0.31455938,635.81,634.43,0.3152436]
[1739292270810,0.31455938,635.81,634.44,0.28931032]
[1739292271115,0.31455938,635.81,634.45,0.60455067]
[1739292271313,0.31455938,635.81,634.46,0.6045457]
[1739292271506,0.31455938,635.81,634.47,0.28931701]
[1739292272710,0.31455938,635.81,634.46,0.31522869]
[1739292273008,0.31455938,635.81,634.47,0.28937464]
[1739292274615,0.31455938,635.81,634.46,0.31522869]
[1739292274913,0.31455938,635.81,634.47,0.28938499]
[1739292275312,5.28585352,635.8,634.47,0.28938499]
[1739292275513,0.31457422,635.78,634.47,0.28938499]
[1739292275712,5.28585352,635.77,634.47,0.28938499]
[1739292275916,0.31458906,635.75,634.47,0.28938499]
[1739292276113,5.28585352,635.74,634.47,0.28938499]
[1739292276309,5.60045248,635.73,634.47,0.28938499]
[1739292276509,5.60045743,635.72,634.48,0.2894241]
[1739292276709,5.60046238,635.71,634.47,0.2894241]
[1739292276910,5.60046733,635.7,634.48,0.2894241]
[1739292277115,5.60047228,635.69,634.47,0.2894241]
[1739292277411,5.60047723,635.68,634.47,0.2894241]
[1739292277616,2.34310306,635.79,634.47,0.2894241]
[1739292277617,5.60048217,635.67,634.47,0.2894241]
[1739292277915,3.86642748,635.66,634.47,0.2894241]
[1739292278111,0.31463855,635.65,634.47,0.2894241]
[1739292280418,0.31463855,635.65,634.48,0.31521876]
[1739292280619,0.31463855,635.65,634.49,0.2894241]
[1739292281418,0.31463855,635.65,634.5,0.31520882]
[1739292281618,0.31463855,635.65,634.51,0.2894241]
[1739292283721,0.31463855,635.65,634.52,0.31519889]
[1739292283921,0.31463855,635.65,634.53,0.28928117]
[1739292284118,0.31463855,635.65,634.54,0.31518895]
[1739292284315,0.31463855,635.65,634.55,0.28928117]
[1739292284719,0.31463855,635.65,634.56,0.31517902]
[1739292284919,0.31463855,635.65,634.57,0.28928117]
[1739292285520,0.31463855,635.65,634.56,0.31517902]
[1739292285714,0.31463855,635.65,634.57,0.28928262]
[1739292287324,0.31463855,635.65,634.56,0.31517902]
[1739292287624,0.31463855,635.65,634.57,0.28927685]
[1739292289230,0.31463855,635.65,634.58,0.31516908]
[1739292289429,0.31463855,635.65,634.59,0.28927701]
[1739292289728,1.4083708,636.1,634.6,0.31515915]
[1739292289922,0.31442091,636.09,634.61,0.28927701]
[1739292290123,0.31442091,636.09,634.62,0.31514922]
[1739292290323,0.31442091,636.09,634.63,0.28927701]
[1739292290628,0.31442091,636.09,634.64,0.31513929]
[1739292290828,0.31442091,636.09,634.65,0.28927701]
[1739292291028,0.31442091,636.09,634.64,0.31513929]
[1739292291229,0.31442091,636.09,634.65,0.28923817]
[1739292291424,0.31442091,636.09,634.66,0.31512936]
[1739292291729,0.31442091,636.09,634.67,0.28923817]
[1739292293928,0.31442091,636.09,634.66,0.31512936]
[1739292294130,0.31442091,636.09,634.67,0.28925233]
[1739292295827,0.31442091,636.09,634.68,0.31511943]
[1739292296024,0.31442091,636.09,634.69,0.28925233]
[1739292296225,0.31442091,636.09,634.69,0.60436679]
[1739292296426,0.31442091,636.09,634.7,0.28925233]
[1739292296625,0.31442091,636.09,634.69,0.31511446]
[1739292299431,0.31442091,636.09,634.7,0.28925903]
[1739292300025,0.31442091,636.09,634.69,0.31511446]
[1739292300228,0.31442091,636.09,634.7,0.2892613]
[1739292301027,0.31442091,636.09,634.71,0.31510453]
[1739292301428,0.31442091,636.09,634.72,0.28924262]
[1739292301626,0.31442091,636.09,634.71,0.31510453]
[1739292302734,0.31442091,636.09,634.72,0.28922752]
[1739292308536,0.31442091,636.09,634.71,0.31510453]
[1739292311939,5.30594146,636.08,634.71,0.31510453]
[1739292312139,0.31443574,636.06,634.71,0.31510453]
[1739292312333,5.30594146,636.05,633.94,0.66501574]
[1739292312542,0.31445057,636.03,633.96,0.31547731]
[1739292312836,5.30594146,636.02,633.97,0.28937099]
[1739292313040,0.3144654,636.0,633.99,0.31546238]
[1739292313232,5.30594146,635.99,634.0,0.28937099]
[1739292313534,0.31448024,635.97,634.02,0.31544746]
[1739292313838,5.6204217,635.97,634.03,0.28937099]
[1739292314037,5.6204217,635.97,634.02,0.31544746]
[1739292314038,0.31448024,635.97,634.05,0.31543253]
[1739292314240,0.31448024,635.97,634.06,0.28937099]
[1739292314539,0.31448024,635.97,634.08,0.31541761]
[1739292314738,0.31448024,635.97,634.09,0.28937099]
[1739292315033,0.31448024,635.97,634.1,0.28937099]
[1739292315231,0.31448024,635.97,634.11,0.28937099]
[1739292315433,0.31448024,635.97,634.12,0.28937099]
[1739292315633,0.31448024,635.97,634.13,0.28937099]
[1739292315837,1.4083708,635.81,634.14,0.60475875]
[1739292316036,1.4083708,635.81,634.16,0.31537782]
[1739292316338,1.4083708,635.81,634.17,0.28937099]
[1739292316538,1.4083708,635.81,634.19,0.3153629]
[1739292316838,1.4083708,635.81,634.2,0.28937099]
[1739292317138,1.4083708,635.81,634.22,0.31534798]
[1739292317542,1.4083708,635.81,634.23,0.28937099]
[1739292317834,1.4083708,635.81,634.25,0.31533307]
[1739292318033,1.4083708,635.81,634.26,0.28937099]
[1739292318237,0.31456432,635.8,634.28,0.31531815]
[1739292318432,0.31456432,635.8,634.29,0.28937099]
[1739292318640,0.31456432,635.8,634.3,0.31530821]
[1739292318941,0.31456432,635.8,634.31,0.28937099]
[1739292319140,0.31456432,635.8,634.32,0.31529827]
[1739292319337,0.31456432,635.8,634.33,0.28937099]
[1739292319538,0.31456432,635.8,634.34,0.31528833]
[1739292319735,5.30594146,635.79,634.35,0.28937099]
[1739292320034,0.31457422,635.78,634.35,0.28937099]
[1739292321137,0.31457422,635.78,634.36,0.31527839]
[1739292321538,0.31457422,635.78,634.37,0.28936187]
[1739292321734,0.31457422,635.78,634.38,0.31526845]
[1739292321943,0.31457422,635.78,634.39,0.28936187]
[1739292322842,0.31457422,635.78,634.39,0.60462535]
[1739292323044,0.31457422,635.78,634.39,0.31526348]
[1739292323444,0.31457422,635.78,634.4,0.28935907]
[1739292325647,1.74076547,635.77,634.4,0.28935907]
[1739292325842,0.31458411,635.76,634.4,0.28935907]
[1739292327246,0.31458411,635.76,634.39,0.31526348]
[1739292328145,1.74076547,635.75,634.39,0.31526348]
[1739292328350,5.30594146,635.74,634.39,0.31526348]
[1739292328649,5.30594146,635.73,634.39,0.31526348]
[1739292328849,5.30594146,635.72,634.39,0.31526348]
[1739292329051,5.30594146,635.71,634.39,0.31526348]
[1739292329252,0.31461876,635.69,634.39,0.31526348]
[1739292329451,5.30594146,635.68,634.39,0.31526348]
[1739292329652,0.3146336,635.66,634.39,0.31526348]
[1739292329951,5.30594146,635.65,634.39,0.31526348]
[1739292330148,0.31464845,635.63,634.39,0.31526348]
[1739292330451,5.30594146,635.62,634.39,0.31526348]
[1739292330651,5.62059981,635.61,634.39,0.31526348]
[1739292330851,2.3478315,635.62,634.39,0.31526348]
[1739292330852,5.62060477,635.6,634.39,0.31526348]
[1739292331046,5.62060972,635.59,634.39,0.31526348]
[1739292331251,0.31467321,635.58,634.39,0.31526348]
[1739292335251,0.31467321,635.58,633.63,1.16294262]
[1739292335457,0.31467321,635.58,633.65,0.31563165]
[1739292335651,0.31467321,635.58,633.66,0.28955627]
[1739292335855,5.30594146,635.57,633.67,0.28955627]
[1739292336060,5.30594146,635.56,633.68,0.28955627]
[1739292336261,5.30594146,635.56,633.65,0.98112762]
[1739292336262,5.30594146,635.55,633.69,0.28955627]
[1739292336461,0.31467321,635.58,633.7,0.60516302]
[1739292336761,0.31469796,635.53,633.71,1.27065401]
[1739292336963,0.31469796,635.53,633.72,0.60515306]
[1739292337160,0.31469796,635.53,633.73,0.31559181]
[1739292337360,0.31469796,635.53,633.74,0.28955627]
[1739292337562,0.31469796,635.53,633.75,0.31558185]
[1739292337756,0.31469796,635.53,633.76,0.28955627]
[1739292339664,0.31469796,635.53,633.75,0.31558185]
[1739292339864,0.31469796,635.53,633.76,0.28969139]
[1739292341865,0.31469796,635.53,633.77,0.31557189]
[1739292342064,0.31469796,635.53,633.78,0.28969139]
[1739292342268,0.31469796,635.53,633.79,0.31556193]
[1739292342459,0.31469796,635.53,633.8,0.28969139]
[1739292343062,0.31469796,635.53,633.81,0.31555197]
[1739292343261,0.31469796,635.53,633.82,0.28969139]
[1739292343566,0.31469796,635.53,633.83,0.60515924]
[1739292343768,0.31469796,635.53,633.84,0.60515426]
[1739292344066,0.31469796,635.53,633.85,0.60514928]
[1739292344262,0.31469796,635.53,633.86,0.6051443]
[1739292344464,0.31469796,635.53,633.87,0.60513933]
[1739292344663,0.31469796,635.53,633.88,0.60513435]
[1739292344863,0.31469796,635.53,633.89,0.28961722]
[1739292345167,0.31469796,635.53,633.9,0.31550717]
[1739292345366,0.31469796,635.53,633.91,0.28961722]
[1739292345566,0.31469796,635.53,633.92,0.31549722]
[1739292345866,0.31469796,635.53,633.93,0.28961722]
[1739292346066,0.31469796,635.53,633.94,0.31548727]
[1739292346266,0.31469796,635.53,633.95,0.28961722]
[1739292346964,0.31469796,635.53,633.96,0.31547731]
[1739292347164,0.31469796,635.53,633.97,0.2895436]
[1739292347968,0.31469796,635.53,633.98,0.31546736]
[1739292348167,0.31469796,635.53,633.99,0.2895436]
[1739292348368,0.31469796,635.53,634.0,0.31545741]
[1739292348568,0.31469796,635.53,634.01,0.2895436]
[1739292348963,0.31469796,635.53,634.01,0.60499603]
[1739292349163,0.31469796,635.53,634.02,0.2895436]
[1739292352173,0.31469796,635.53,634.03,0.28954693]
[1739292352370,0.31469796,635.53,634.02,0.28954693]
[1739292352565,0.31469796,635.53,634.03,0.28954693]
[1739292352770,0.31469796,635.53,634.02,0.28954693]
[1739292352967,0.31469796,635.53,634.03,0.28954693]
[1739292353170,0.31469796,635.53,634.02,0.28954693]
[1739292353473,0.31469796,635.53,634.01,0.31545243]
[1739292353474,0.31469796,635.53,634.03,0.28954693]
[1739292353674,0.31469796,635.53,634.02,0.28954693]
[1739292353878,0.31469796,635.53,634.01,0.31545243]
[1739292355881,0.31469796,635.53,634.02,0.28963141]
[1739292356479,0.31469796,635.53,634.01,0.31545243]
[1739292357581,0.31469796,635.53,634.02,0.28962988]
[1739292357981,0.31469796,635.53,634.01,0.31545243]
[1739292361285,0.31469796,635.53,633.29,0.66559397]
[1739292361484,0.31469796,635.53,633.31,0.3158011]
[1739292361785,0.31469796,635.53,633.32,0.28966973]
[1739292361984,0.31469796,635.53,633.34,0.31578614]
[1739292362284,0.31469796,635.53,633.35,0.28966973]
[1739292363584,0.31469796,635.53,633.37,0.31577119]
[1739292363788,0.31469796,635.53,633.38,0.28966973]
[1739292364177,0.31469796,635.53,633.37,0.31577119]
[1739292364381,0.31469796,635.53,633.38,0.2897811]
[1739292364784,0.31469796,635.53,633.4,0.31575623]
[1739292364979,0.31469796,635.53,633.41,0.2897811]
[1739292365485,0.31469796,635.53,633.43,0.31574128]
[1739292365685,0.31469796,635.53,633.44,0.2897811]
[1739292365887,0.31469796,635.53,633.46,0.31572632]
[1739292366185,0.31469796,635.53,633.47,0.2897811]
[1739292366779,1.4083708,635.42,633.49,0.31571137]
[1739292367085,0.31476235,635.4,633.5,0.2897811]
[1739292367382,0.31476235,635.4,633.52,0.31569642]
[1739292367687,0.31476235,635.4,633.53,0.2897811]
[1739292368486,0.31476235,635.4,633.55,0.31568147]
[1739292368781,0.31476235,635.4,633.56,0.2897811]
[1739292368986,0.31476235,635.4,633.58,0.31566652]
[1739292369483,0.31476235,635.4,633.59,0.2897811]
[1739292369888,0.31476235,635.4,633.61,0.31565158]
[1739292370083,0.31476235,635.4,633.62,0.2897811]
[1739292370290,0.31476235,635.4,633.64,0.31563663]
[1739292370588,0.31476235,635.4,633.65,0.2897811]
[1739292370787,0.31476235,635.4,633.67,0.31562169]
[1739292370983,0.31476235,635.4,633.68,0.2897811]
[1739292371291,0.31476235,635.4,633.69,0.31561173]
[1739292371488,0.31476235,635.4,633.7,0.2897811]
[1739292371687,0.31476235,635.4,633.72,0.31559679]
[1739292371887,0.31476235,635.4,633.73,0.2897811]
[1739292372087,0.31476235,635.4,633.75,0.31558185]
[1739292372287,0.31476235,635.4,633.76,0.2897811]
[1739292372486,0.31476235,635.4,633.77,0.31557189]
[1739292372684,0.31476235,635.4,633.78,0.2897811]
[1739292372884,0.31476235,635.4,633.79,0.31556193]
[1739292373087,0.31476235,635.4,633.8,0.2897811]
[1739292373286,0.31476235,635.4,633.81,0.31555197]
[1739292373484,0.31476235,635.4,633.82,0.2897811]
[1739292373890,0.31476235,635.4,633.83,0.31554202]
[1739292374192,0.31476235,635.4,633.84,0.28959212]
[1739292374388,0.31476235,635.4,633.85,0.31553206]
[1739292374589,0.31476235,635.4,633.86,0.28959212]
[1739292374786,0.31476235,635.4,633.87,0.31552211]
[1739292374989,0.31476235,635.4,633.88,0.28959212]
[1739292375191,0.31476235,635.4,633.89,0.31551215]
[1739292375390,0.31476235,635.4,633.9,0.28959212]
[1739292375584,0.31476235,635.4,633.91,0.3155022]
[1739292375788,0.31476235,635.4,633.92,0.28959212]
[1739292375986,0.31476235,635.4,633.93,0.31549224]
[1739292376185,0.31476235,635.4,633.94,0.28959212]
[1739292376585,0.31476235,635.4,633.95,0.31548229]
[1739292376786,0.31476235,635.4,633.96,0.28959212]
[1739292377192,0.31476235,635.4,633.97,0.31547234]
[1739292377491,0.31476235,635.4,633.98,0.28959212]
[1739292377687,0.31476235,635.4,633.99,0.31546238]
[1739292377992,0.31476235,635.4,634.0,0.28959212]
[1739292384095,5.30594146,635.39,634.0,0.28959212]
[1739292384390,1.4083708,635.42,634.0,0.28959212]
[1739292384391,5.62071372,635.38,634.0,0.28959212]
[1739292384588,5.62071867,635.37,634.0,0.28959212]
[1739292384793,5.62072363,635.36,634.0,0.28959212]
[1739292385094,5.62072858,635.35,634.0,0.28959212]
[1739292385293,5.62073353,635.34,634.0,0.28959212]
[1739292385489,5.62073849,635.33,634.0,0.28959212]
[1739292385694,0.31480198,635.32,634.0,0.28959212]
[1739292387795,0.31480198,635.32,634.01,0.28956977]
[1739292387991,0.31480198,635.32,634.0,0.28956977]
[1739292388194,0.31480198,635.32,634.02,0.28956977]
[1739292388388,0.31480198,635.32,634.03,0.28956977]
[1739292388590,0.31480198,635.32,634.0,0.28958902]
[1739292388789,0.31480198,635.32,633.99,0.31546238]
[1739292388995,0.31480198,635.32,634.0,0.28958519]
[1739292391998,0.31480198,635.32,633.99,0.31546238]
[1739292392896,0.31480198,635.32,634.0,0.28958766]
[1739292397101,0.31480198,635.32,634.01,0.31545243]
[1739292397302,0.31480198,635.32,634.02,0.28958766]
[1739292397603,0.31480198,635.32,634.03,0.31544248]
[1739292397802,0.31480198,635.32,634.04,0.28958766]
[1739292398304,0.31480198,635.32,634.04,0.60502517]
[1739292398605,0.31480198,635.32,634.05,0.28958766]
[1739292398904,0.31480198,635.32,634.04,0.31543751]
[1739292400104,0.31480198,635.32,634.04,0.31101711]
[1739292400306,0.31480198,635.32,634.05,0.28951908]
[1739292400605,0.31480198,635.32,634.04,0.31101711]
[1739292401507,0.31480198,635.32,634.05,0.28954812]
[1739292404801,1.74076547,635.31,634.05,0.28954812]
[1739292405007,5.30594146,635.3,634.05,0.28954812]
[1739292405307,5.62075831,635.29,634.05,0.28954812]
[1739292405507,5.30594146,635.28,634.05,0.28954812]
[1739292405705,5.30594146,635.27,634.05,0.28954812]
[1739292406006,5.30594146,635.26,634.05,0.28954812]
[1739292406205,5.30594146,635.25,634.05,0.28954812]
[1739292406402,2.3478315,635.26,634.05,0.28954812]
[1739292407706,1.4083708,635.25,634.05,0.28954812]
[1739292408708,1.4083708,635.25,634.06,0.31542756]
[1739292408907,1.4083708,635.25,634.07,0.28954812]
[1739292409109,1.4083708,635.25,634.08,0.31541761]
[1739292409308,1.4083708,635.25,634.09,0.28954812]
[1739292409504,1.4083708,635.25,634.1,0.31540766]
[1739292409705,0.31481685,635.29,634.11,0.28954812]
[1739292409907,0.31481685,635.29,634.11,0.60495081]
[1739292410102,0.31481685,635.29,634.11,0.31540269]
[1739292411508,0.31481685,635.29,634.12,0.28951912]
[1739292414814,0.31481685,635.29,634.13,0.31539274]
[1739292415008,0.31481685,635.29,634.14,0.28951912]
[1739292415215,0.31481685,635.29,634.15,0.31538279]
[1739292415413,0.31481685,635.29,634.16,0.28951912]
[1739292415713,0.31481685,635.29,634.17,0.31537284]
[1739292415914,0.31481685,635.29,634.18,0.28951912]
[1739292416109,0.31481685,635.29,634.19,0.3153629]
[1739292416307,0.31481685,635.29,634.2,0.28951912]
[1739292416516,0.31481685,635.29,634.21,0.31535295]
[1739292416714,1.4083708,635.59,634.22,0.28951912]
[1739292417111,1.4083708,635.59,634.23,0.31534301]
[1739292417310,1.4083708,635.59,634.24,0.28951912]
[1739292417510,1.4083708,635.59,634.25,0.31533307]
[1739292417711,1.4083708,635.59,634.26,0.28951912]
[1739292417908,4.08859697,635.7,634.27,0.31532312]
[1739292418115,4.08859697,635.7,634.28,0.28951912]
[1739292418116,0.31461876,635.69,634.28,0.28951912]
[1739292418308,0.31461876,635.69,634.29,0.31531318]
[1739292418713,0.31461876,635.69,634.3,0.28951912]
[1739292418912,0.31461876,635.69,634.31,0.31530324]
[1739292419116,0.31461876,635.69,634.32,0.28951912]
[1739292419315,0.31461876,635.69,634.32,0.60481739]
[1739292419515,0.31461876,635.69,634.33,0.28951912]
[1739292420315,5.30594146,635.68,634.32,0.31529827]
[1739292420615,5.30594146,635.67,634.33,0.28944865]
[1739292420910,0.31461876,635.69,634.33,0.28944865]
[1739292421109,0.31461876,635.69,634.32,0.31529827]
[1739292424620,0.31461876,635.69,634.33,0.28940882]
[1739292424814,0.31461876,635.69,634.34,0.31528833]
[1739292425118,0.31461876,635.69,634.35,0.28940882]
[1739292425314,0.31461876,635.69,634.36,0.31527839]
[1739292425515,0.31461876,635.69,634.37,0.28940882]
[1739292425714,0.31461876,635.69,634.38,0.31526845]
[1739292425920,0.31461876,635.69,634.39,0.28940882]
[1739292426322,0.31461876,635.69,634.4,0.31525851]
[1739292426620,0.31461876,635.69,634.41,0.28940882]
[1739292426820,0.31461876,635.69,634.42,0.31524857]
[1739292427013,0.31461876,635.69,634.43,0.28940882]
[1739292427218,0.31461876,635.69,634.44,0.60455997]
[1739292427415,0.31461876,635.69,634.45,0.28932134]
[1739292427621,0.31461876,635.69,634.46,0.31522869]
[1739292427917,0.31461876,635.69,634.47,0.28932134]
[1739292428319,0.31461876,635.69,634.48,0.31521876]
[1739292428518,0.31461876,635.69,634.49,0.28932134]
[1739292430416,0.31461876,635.69,634.48,0.31521876]
[1739292433621,0.31461876,635.69,633.54,1.16294262]
[1739292433822,0.31461876,635.69,633.66,1.64476794]
[1739292434019,0.31461876,635.69,633.68,0.31561671]
[1739292434221,0.31461876,635.69,633.69,0.28948553]
[1739292434421,0.31461876,635.69,633.71,0.31560177]
[1739292434618,0.31461876,635.69,633.72,0.28948553]
[1739292434818,0.31461876,635.69,633.74,0.31558683]
[1739292435021,0.31461876,635.69,633.75,0.28948553]
[1739292435220,0.31461876,635.69,633.77,0.31557189]
[1739292435418,0.31461876,635.69,633.78,0.28948553]
[1739292435618,0.31461876,635.69,633.77,0.31557189]
[1739292435619,0.31461876,635.69,633.8,0.31555695]
[1739292435823,0.31461876,635.69,633.81,0.28948553]
[1739292436026,0.31461876,635.69,633.83,0.31554202]
[1739292436225,0.31461876,635.69,633.84,0.28948553]
[1739292436423,0.31461876,635.69,633.86,0.31552708]
[1739292436624,0.31461876,635.69,633.87,0.28948553]
[1739292436928,0.31461876,635.69,633.89,0.31551215]
[1739292437126,5.30594146,635.68,633.9,0.28948553]
[1739292437326,5.30594146,635.68,633.88,0.66571254]
[1739292437327,0.3146336,635.66,633.92,0.31549722]
[1739292437622,5.30594146,635.65,633.93,0.28948553]
[1739292437821,5.30594146,635.64,633.94,0.28948553]
[1739292438023,0.31464845,635.63,633.95,0.60496782]
[1739292438234,0.31464845,635.63,633.96,0.31547731]
[1739292438423,0.31464845,635.63,633.97,0.28946849]
[1739292438627,0.31464845,635.63,633.99,0.31546238]
[1739292438819,0.31464845,635.63,634.0,0.28946849]
[1739292439024,0.31464845,635.63,634.01,0.31545243]
[1739292439223,0.31464845,635.63,634.02,0.28946849]
[1739292439425,0.31464845,635.63,634.03,0.60491097]
[1739292439721,0.31464845,635.63,634.04,1.27058476]
[1739292439926,0.31464845,635.63,634.05,0.28946849]
[1739292440126,0.31464845,635.63,634.04,0.31543751]
[1739292440323,0.31464845,635.63,634.05,0.28943428]
[1739292440526,0.31464845,635.63,634.04,0.31543751]
[1739292440527,0.31464845,635.63,634.06,0.28943428]
[1739292440722,0.31464845,635.63,634.07,0.60485686]
[1739292440922,0.31464845,635.63,634.09,0.31541263]
[1739292441128,0.31464845,635.63,634.1,0.28943428]
[1739292441330,0.31464845,635.63,634.12,0.31539771]
[1739292441534,0.31464845,635.63,634.13,0.28943428]
[1739292441724,0.31464845,635.63,634.15,0.31538279]
[1739292441925,0.31464845,635.63,634.16,0.28943428]
[1739292442631,0.31464845,635.63,634.17,0.28943428]
[1739292442827,0.31464845,635.63,634.18,0.28943428]
[1739292443026,0.31464845,635.63,634.19,0.28943428]
[1739292443227,0.31464845,635.63,634.21,0.31535295]
[1739292443428,0.31464845,635.63,634.22,0.28943428]
[1739292443827,0.31464845,635.63,634.24,0.31533804]
[1739292444131,0.31464845,635.63,634.25,0.28943428]
[1739292444328,0.31464845,635.63,634.27,0.31532312]
[1739292444534,0.31464845,635.63,634.28,0.28943428]
[1739292444940,0.31464845,635.63,634.3,0.31530821]
[1739292445140,0.31464845,635.63,634.31,0.28943428]
[1739292445439,0.31464845,635.63,634.33,0.3152933]
[1739292445634,0.31464845,635.63,634.34,0.28943428]
[1739292445839,0.31464845,635.63,634.35,0.31528336]
[1739292446039,0.31464845,635.63,634.36,0.28943428]
[1739292446234,0.31464845,635.63,634.37,0.31527342]
[1739292446435,0.31464845,635.63,634.38,0.28943428]
[1739292446639,0.31464845,635.63,634.39,0.31526348]
[1739292446840,0.31464845,635.63,634.4,0.28943428]
[1739292447042,0.31464845,635.63,634.41,0.31525354]
[1739292447340,0.31464845,635.63,634.42,0.28943428]
[1739292448839,0.31464845,635.63,634.43,0.3152436]
[1739292449041,0.31464845,635.63,634.44,0.28943428]
[1739292449235,0.31464845,635.63,633.92,1.16294262]
[1739292449236,0.31464845,635.63,634.45,0.31523366]
[1739292449436,0.31464845,635.63,634.46,0.2893286]
[1739292449638,0.31464845,635.63,634.47,0.31522373]
[1739292450239,0.31464845,635.63,634.48,0.28933672]
[1739292450440,0.31464845,635.63,634.49,0.31521379]
[1739292451742,0.31464845,635.63,634.5,0.28934164]
[1739292452941,0.31464845,635.63,634.51,0.31520385]
[1739292453144,0.31464845,635.63,634.52,0.28934164]
[1739292453338,0.31464845,635.63,634.53,0.31519392]
[1739292453538,0.31464845,635.63,634.54,0.28934164]
[1739292453741,0.31464845,635.63,634.54,0.60453059]
[1739292453941,0.31464845,635.63,634.55,0.28934164]
[1739292454943,0.31464845,635.63,634.56,0.31517902]
[1739292455740,0.31464845,635.63,634.57,0.2892842]
[1739292456042,3.7562023,636.36,634.58,0.31516908]
[1739292456242,0.31429738,636.34,634.59,0.2892842]
[1739292456443,0.31429738,636.34,634.6,0.31515915]
[1739292456644,0.31429738,636.34,634.61,0.2892842]
[1739292456940,0.31429738,636.34,634.62,0.31514922]
[1739292457245,0.31429738,636.34,634.63,0.2892842]
[1739292457443,0.31429738,636.34,634.64,0.31513929]
[1739292457638,0.31429738,636.34,634.65,0.2892842]
[1739292457838,0.31429738,636.34,634.66,0.31512936]
[1739292458037,0.31429738,636.34,634.67,0.2892842]
[1739292458237,0.31429738,636.34,634.68,0.31511943]
[1739292458545,0.31429738,636.34,634.69,0.28923144]
[1739292458843,0.31429738,636.34,634.7,0.3151095]
[1739292459043,0.31429738,636.34,634.71,0.28923144]
[1739292460942,0.31429738,636.34,634.72,0.31509957]
[1739292461144,0.31429738,636.34,634.73,0.28923144]
[1739292461336,0.31429738,636.34,634.74,0.31508964]
[1739292461538,0.31429738,636.34,634.75,0.28923144]
[1739292461740,0.31429738,636.34,634.76,0.31507971]
[1739292461939,0.31429738,636.34,634.77,0.28923144]
[1739292462137,0.31429738,636.34,634.76,0.31507971]
[1739292467245,0.31429738,636.34,634.77,0.2892108]
[1739292467645,0.31429738,636.34,634.78,0.31506978]
[1739292472451,0.31429738,636.34,634.79,0.28919032]
[1739292472852,0.31429738,636.34,634.8,0.31505986]
[1739292473456,0.31429738,636.34,634.81,0.28918162]
[1739292473653,0.31429738,636.34,634.82,0.31504993]
[1739292475755,0.31429738,636.34,634.83,0.28921021]
[1739292478857,0.31429738,636.34,634.83,0.60425518]
[1739292479052,0.31429738,636.34,634.84,0.28921021]
[1739292480661,0.31429738,636.34,634.83,0.31504497]
[1739292482955,0.31429738,636.34,634.84,0.28917161]
[1739292483162,0.31429738,636.34,634.85,0.31503504]
[1739292483362,0.31429738,636.34,634.86,0.28917161]
[1739292483663,0.31429738,636.34,634.87,0.28916837]
[1739292483856,0.31429738,636.34,634.86,0.28916837]
[1739292484056,0.31429738,636.34,634.85,0.31503504]
[1739292487461,0.31429738,636.34,634.86,0.28918749]
[1739292488966,0.31429738,636.34,634.87,0.28916752]
[1739292489263,0.31429738,636.34,634.85,0.31503504]
[1739292489264,0.31429738,636.34,634.88,0.28916752]
[1739292489460,0.31429738,636.34,634.86,0.28916752]
[1739292489657,0.31429738,636.34,634.89,0.28916752]
[1739292489861,0.31429738,636.34,634.9,0.28916752]
[1739292490061,0.31429738,636.34,634.86,0.28916752]
[1739292491867,1.4083708,636.1,634.86,0.28916752]
[1739292494269,0.31442091,636.09,634.85,0.31503504]
[1739292496868,0.31442091,636.09,634.86,0.28921467]
[1739292499665,0.31442091,636.09,634.85,0.31503504]
[1739292500267,1.4083708,636.04,634.86,0.28919694]
[1739292502074,0.31442091,636.09,634.87,0.28917822]
[1739292502373,0.31442091,636.09,634.88,0.28917822]
[1739292502574,0.31442091,636.09,634.86,0.28917822]
[1739292502773,0.31442091,636.09,634.89,0.28917822]
[1739292502968,0.31442091,636.09,634.85,0.31503504]
[1739292503173,0.31442091,636.09,634.86,0.28918977]
[1739292503570,0.31442091,636.09,634.85,0.31503504]
[1739292509776,1.7364476,636.08,634.85,0.31503504]
[1739292510079,5.60758623,636.07,634.85,0.31503504]
[1739292510272,5.60759117,636.06,634.85,0.31503504]
[1739292510475,5.60759611,636.05,634.85,0.31503504]
[1739292510676,5.60760106,636.04,634.85,0.31503504]
[1739292510876,5.607606,636.03,634.85,0.31503504]
[1739292511073,5.29315543,636.02,634.85,0.31503504]
[1739292511377,0.31445057,636.03,634.85,0.31503504]
[1739292511578,1.4083708,635.9,634.85,0.31503504]
[1739292511776,1.4083708,635.9,634.86,0.28918498]
[1739292512972,1.4083708,635.9,634.85,0.31503504]
[1739292513172,1.4083708,635.9,634.86,0.28918283]
[1739292513878,0.31445057,636.03,634.86,0.28918283]
[1739292514574,0.31445057,636.03,634.87,0.31502512]
[1739292517380,0.31445057,636.03,634.88,0.28919369]
[1739292517578,0.31445057,636.03,634.87,0.31502512]
[1739292519484,2.34777554,636.37,634.48,1.16294262]
[1739292519687,1.4083708,636.14,634.49,0.28921785]